bitfinex-derivatives/quotes_BTCF0:USTF0_20240903
["timestamp","ask_amount","ask_price","bid_price","bid_amount"]
[1725364794967,0.089602,59103.0,59102.0,0.09125378]
[1725364795172,0.179602,59103.0,59102.0,0.09125378]
[1725364795772,0.179602,59103.0,59102.0,0.17585678]
[1725364800774,0.179602,59103.0,59102.0,0.08585678]
[1725364802472,0.095,59103.0,59102.0,0.08585678]
[1725364802673,0.005,59103.0,59102.0,0.08585678]
[1725364802872,0.089602,59103.0,59102.0,0.08585678]
[1725364803183,0.209602,59103.0,59102.0,0.08585678]
[1725364810281,0.209602,59103.0,59102.0,0.00125378]
[1725364811194,1.486406,59103.0,59102.0,0.00125378]
[1725364813488,1.576406,59103.0,59102.0,0.00125378]
[1725364813694,0.976406,59103.0,59102.0,0.00125378]
[1725364813896,0.384204,59103.0,59102.0,0.00125378]
[1725364814197,0.891804,59103.0,59102.0,0.00125378]
[1725364814700,0.90001852,59103.0,59102.0,0.00125378]
[1725364815297,1.50001852,59103.0,59102.0,0.00125378]
[1725364815503,0.90001852,59103.0,59102.0,0.00125378]
[1725364816293,1.50001852,59103.0,59102.0,0.00125378]
[1725364818503,0.39241852,59103.0,59102.0,0.00125378]
[1725364819088,1.58462052,59103.0,59102.0,0.00125378]
[1725364819295,0.169218,59098.0,59097.0,0.0039]
[1725364819596,0.084615,59094.0,59093.0,0.0039]
[1725364819794,0.174616,59093.0,59092.0,0.084617]
[1725364819994,0.635816,59093.0,59092.0,0.084617]
[1725364820195,0.635416,59093.0,59092.0,0.084617]
[1725364821700,0.545416,59093.0,59092.0,0.084617]
[1725364821912,0.545416,59093.0,59092.0,0.089617]
[1725364822899,0.184616,59093.0,59092.0,0.089617]
[1725364823494,0.184616,59093.0,59092.0,0.090617]
[1725364823707,0.184616,59093.0,59092.0,0.006]
[1725364824291,0.269232,59093.0,59092.0,0.006]
[1725364825896,0.084622,59089.0,59088.0,0.134823]
[1725364826096,0.084622,59089.0,59088.0,0.13924297]
[1725364826097,0.154022,59089.0,59088.0,0.13924297]
[1725364827210,0.159022,59089.0,59088.0,0.13924297]
[1725364827809,0.160022,59089.0,59088.0,0.13924297]
[1725364829904,0.160022,59089.0,59088.0,0.09294297]
[1725364831123,0.160022,59089.0,59088.0,0.084623]
[1725364832807,0.160022,59089.0,59087.0,0.08487878]
[1725364832808,0.084623,59088.0,59087.0,0.08487878]
[1725364832999,0.195023,59088.0,59087.0,0.08487878]
[1725364833401,0.279646,59088.0,59087.0,0.00025378]
[1725364834298,0.195023,59088.0,59087.0,0.00025378]
[1725364834499,0.1104,59088.0,59087.0,0.31487878]
[1725364834697,0.0004,59088.0,59087.0,0.31487878]
[1725364836013,0.0044,59088.0,59087.0,1.78339878]
[1725364836710,0.0044,59088.0,59087.0,1.18339878]
[1725364836914,0.0044,59088.0,59087.0,6.51339878]
[1725364837108,0.0054,59088.0,59087.0,6.51339878]
[1725364837319,0.0014,59088.0,59087.0,6.51339878]
[1725364837508,0.0074,59088.0,59087.0,6.51439878]
[1725364838007,0.0074,59088.0,59087.0,6.59902378]
[1725364838415,0.00025378,59094.0,59093.0,0.084616]
[1725364838708,0.0039,59103.0,59097.0,0.08461]
[1725364838914,0.0039,59107.0,59097.0,1.36042]
[1725364839212,0.0039,59107.0,59106.0,0.084598]
[1725364839510,0.3608,59109.0,59108.0,0.084595]
[1725364839710,0.3608,59109.0,59108.0,0.084995]
[1725364840009,0.08644,59114.0,59109.0,0.084592]
[1725364840213,0.08644,59114.0,59108.0,0.0004]
[1725364840214,0.09644,59114.0,59113.0,0.0004]
[1725364842309,0.011853,59114.0,59113.0,0.084987]
[1725364843413,0.011853,59114.0,59113.0,0.085987]
[1725364843609,0.011853,59114.0,59113.0,0.086987]
[1725364844808,0.096439,59114.0,59113.0,0.086987]
[1725364846011,0.096439,59114.0,59113.0,0.0024]
[1725364847314,0.181025,59114.0,59113.0,0.0024]
[1725364847516,0.084599,59105.0,59104.0,0.0039]
[1725364847725,0.084599,59105.0,59103.0,0.00025378]
[1725364847726,0.0846,59104.0,59103.0,0.00025378]
[1725364847907,0.169218,59098.0,59097.0,0.0039]
[1725364848112,0.08461,59097.0,59090.0,0.0039]
[1725364848310,0.08461,59097.0,59085.0,0.0494]
[1725364848311,0.5908,59091.0,59087.0,0.088524]
[1725364848515,0.0004,59088.0,59087.0,0.084624]
[1725364848706,0.07,59088.0,59087.0,0.084624]
[1725364848913,0.069,59088.0,59087.0,0.084624]
[1725364849910,0.153623,59088.0,59087.0,0.090624]
[1725364850820,0.146623,59088.0,59087.0,0.090624]
[1725364852207,0.146623,59088.0,59087.0,0.084624]
[1725364852208,0.148623,59088.0,59087.0,0.084624]
[1725364854624,0.148623,59088.0,59085.0,0.0494]
[1725364855025,0.148623,59088.0,59087.0,0.314625]
[1725364855822,0.146623,59088.0,59087.0,0.314625]
[1725364856119,0.147623,59088.0,59087.0,0.314625]
[1725364856815,0.146623,59088.0,59087.0,0.314625]
[1725364857223,0.148623,59088.0,59087.0,0.314625]
[1725364862723,0.148623,59088.0,59087.0,0.084625]
[1725364871227,0.148623,59088.0,59087.0,0.314625]
[1725364875735,0.148623,59088.0,59087.0,0.084625]
[1725364876139,0.148623,59088.0,59087.0,0.314625]
[1725364876442,0.148623,59088.0,59087.0,0.36516283]
[1725364877237,0.148623,59088.0,59087.0,0.38210157]
[1725364878041,0.148623,59088.0,59087.0,0.314625]
[1725364878338,0.064,59088.0,59087.0,0.314625]
[1725364878643,0.002,59088.0,59087.0,0.39925]
[1725364880545,0.002,59088.0,59087.0,0.44999187]
[1725364880740,0.002,59088.0,59087.0,0.39925]
[1725364882433,0.002,59088.0,59087.0,0.44998084]
[1725364883533,0.002,59088.0,59087.0,0.39925]
[1725364884732,0.00025378,59093.0,59092.0,0.084618]
[1725364884936,0.00025378,59093.0,59092.0,0.853854]
[1725364885138,0.0039,59102.0,59092.0,1.49087071]
[1725364885339,0.0039,59106.0,59105.0,0.084599]
[1725364885545,0.4708,59106.0,59105.0,0.084999]
[1725364885738,0.4708,59106.0,59105.0,0.084599]
[1725364886739,0.4788,59106.0,59105.0,0.085599]
[1725364886937,0.563398,59106.0,59105.0,0.001]
[1725364887246,0.793398,59106.0,59105.0,0.001]
[1725364889446,0.793398,59106.0,59105.0,0.002]
[1725364893152,0.877996,59106.0,59105.0,0.002]
[1725364895448,2.120154,59106.0,59105.0,0.002]
[1725364895647,0.253815,59101.0,59100.0,0.00025378]
[1725364895851,1.095015,59101.0,59100.0,0.00025378]
[1725364896049,2.202615,59101.0,59100.0,0.00025378]
[1725364896949,2.27131412,59101.0,59100.0,0.00225378]
[1725364897149,2.27131439,59101.0,59100.0,0.00225378]
[1725364897546,2.210615,59101.0,59100.0,0.00225378]
[1725364898749,2.571415,59101.0,59100.0,0.00225378]
[1725364900950,2.57939471,59101.0,59100.0,0.00225378]
[1725364901355,2.45939471,59101.0,59100.0,0.00225378]
[1725364902157,2.46939471,59101.0,59100.0,0.00225378]
[1725364902862,1.85939471,59101.0,59100.0,0.00225378]
[1725364903263,2.45939471,59101.0,59100.0,0.00225378]
[1725364903465,1.85939471,59101.0,59100.0,0.00225378]
[1725364903653,1.26718971,59101.0,59100.0,0.00225378]
[1725364904152,0.95258471,59101.0,59100.0,0.00225378]
[1725364904552,0.95258471,59101.0,59100.0,0.08685978]
[1725364905061,0.59178471,59101.0,59100.0,0.08685978]
[1725364905263,0.583805,59101.0,59100.0,0.08685978]
[1725364905963,0.4992,59101.0,59100.0,0.08685978]
[1725364906261,0.3692,59101.0,59100.0,0.08685978]
[1725364906756,0.3692,59101.0,59100.0,0.09229129]
[1725364909054,0.3692,59101.0,59100.0,0.1006148]
[1725364910654,0.0084,59101.0,59100.0,0.1006148]
[1725364911548,0.0684,59101.0,59100.0,0.09229129]
[1725364912759,0.0084,59101.0,59100.0,0.09229129]
[1725364917270,0.0084,59101.0,59100.0,0.17689729]
[1725364920163,0.0084,59101.0,59100.0,0.09229129]
[1725364920666,0.0084,59101.0,59100.0,0.14287893]
[1725364921169,0.0084,59101.0,59100.0,0.09229129]
[1725364922664,0.0084,59101.0,59100.0,0.17689729]
[1725364922975,0.0084,59101.0,59100.0,1.36910329]
[1725364923167,4.4e-07,59101.0,59100.0,1.36910329]
[1725364924063,4.4e-07,59101.0,59100.0,1.28449729]
[1725364925472,4.4e-07,59101.0,59100.0,1.36910329]
[1725364925675,4.4e-07,59101.0,59100.0,1.41800329]
[1725364928062,4.4e-07,59101.0,59100.0,2.13960329]
[1725364928474,4.4e-07,59101.0,59100.0,2.18750329]
[1725364929074,4.4e-07,59101.0,59100.0,2.10289729]
[1725364929273,4.4e-07,59101.0,59100.0,2.18750329]
[1725364929978,4.4e-07,59101.0,59100.0,2.10289729]
[1725364931278,4.4e-07,59101.0,59100.0,2.41750329]
[1725364933675,4.4e-07,59101.0,59100.0,2.46806666]
[1725364934475,4.4e-07,59101.0,59100.0,2.41750329]
[1725364939986,0.000253,59111.0,59100.0,2.41750329]
[1725364939987,0.000253,59111.0,59110.0,0.253776]
[1725364940282,0.0039,59135.0,59110.0,1.31087994]
[1725364940487,0.0975,59139.0,59138.0,0.084552]
[1725364940678,0.09342,59139.0,59138.0,0.084552]
[1725364942274,0.09542,59139.0,59138.0,0.085552]
[1725364943287,0.09542,59139.0,59138.0,0.086552]
[1725364943288,0.09642,59139.0,59138.0,0.086552]
[1725364948194,0.09642,59139.0,59138.0,0.087352]
[1725364948590,0.003,59139.0,59138.0,0.087352]
[1725364948802,0.003,59139.0,59138.0,0.679184]
[1725364949106,0.003,59139.0,59138.0,0.640132]
[1725364949290,0.003,59139.0,59138.0,0.724684]
[1725364949685,0.003,59139.0,59138.0,1.324684]
[1725364950588,0.003,59139.0,59138.0,0.171904]
[1725364952091,0.003,59139.0,59138.0,0.087352]
[1725364952289,0.003,59139.0,59138.0,0.171904]
[1725364952688,0.003,59139.0,59138.0,0.679184]
[1725364952995,0.003,59139.0,59138.0,0.171904]
[1725364959810,0.003,59139.0,59138.0,0.532704]
[1725364963301,0.003,59139.0,59138.0,0.448152]
[1725364963500,0.003,59139.0,59138.0,0.678152]
[1725364963706,0.003,59139.0,59138.0,0.762704]
[1725364964192,0.003,59139.0,59138.0,0.725352]
[1725364966400,0.003,59139.0,59138.0,0.809904]
[1725364966595,0.003,59139.0,59138.0,0.725352]
[1725364967698,0.003,59139.0,59138.0,0.809904]
[1725364967902,0.0457,59156.0,59151.0,0.084533]
[1725364968100,0.0457,59156.0,59151.0,0.676133]
[1725364968101,0.05,59152.0,59151.0,0.676133]
[1725364968508,0.0481,59159.0,59151.0,0.5916]
[1725364968700,0.0481,59159.0,59158.0,0.315323]
[1725364971006,0.0481,59159.0,59158.0,0.316323]
[1725364971596,0.0481,59159.0,59158.0,0.317323]
[1725364973802,0.0481,59159.0,59158.0,1.057323]
[1725364976910,0.0481,59159.0,59158.0,1.06558146]
[1725364978008,0.3608,59161.0,59158.0,1.06558146]
[1725364978206,0.3608,59161.0,59160.0,0.08532]
[1725364978409,0.084515,59164.0,59162.0,0.084516]
[1725364978604,0.084515,59164.0,59163.0,0.23]
[1725364978820,0.084515,59164.0,59163.0,0.2308]
[1725364979117,0.084515,59164.0,59163.0,0.315316]
[1725364980719,0.0453,59165.0,59164.0,0.084515]
[1725364981015,0.0479,59166.0,59165.0,0.084513]
[1725364981216,0.0479,59166.0,59165.0,0.085313]
[1725364981716,1.469452,59166.0,59165.0,0.0008]
[1725364982019,1.589452,59166.0,59165.0,0.0008]
[1725364982313,0.252412,59166.0,59165.0,0.0008]
[1725364982617,0.31303691,59166.0,59165.0,0.0008]
[1725364982818,0.31303691,59166.0,59165.0,0.085313]
[1725364983121,0.10852491,59166.0,59165.0,0.085313]
[1725364983434,0.0479,59166.0,59165.0,0.085313]
[1725364984320,0.06062491,59168.0,59167.0,0.08451]
[1725364984509,0.3608,59169.0,59168.0,0.084509]
[1725364984709,0.43142491,59169.0,59168.0,0.085309]
[1725364984918,0.43142491,59169.0,59168.0,0.084509]
[1725364987027,0.43142491,59169.0,59168.0,0.085509]
[1725364987521,0.51593191,59169.0,59168.0,0.085509]
[1725364987917,0.51593191,59169.0,59168.0,0.086509]
[1725364988519,0.15513191,59169.0,59168.0,0.086509]
[1725364988720,0.094507,59169.0,59168.0,0.086509]
[1725364989922,0.084504,59172.0,59171.0,0.084505]
[1725364990228,0.05,59172.0,59171.0,0.315305]
[1725364990426,0.0496,59181.0,59171.0,0.2308]
[1725364990725,0.0496,59181.0,59180.0,0.2308]
[1725364990927,0.0496,59181.0,59180.0,0.085292]
[1725364991117,0.15409,59181.0,59180.0,0.0008]
[1725364991514,0.10449,59181.0,59180.0,0.0008]
[1725364992628,0.02,59181.0,59180.0,0.085292]
[1725364993324,0.02,59181.0,59180.0,0.086292]
[1725364993524,0.02,59181.0,59180.0,0.087292]
[1725364993928,0.02,59181.0,59180.0,0.0028]
[1725364994128,0.23788,59181.0,59180.0,0.0018]
[1725364994435,0.23788,59181.0,59180.0,0.0028]
[1725364997027,1.3448,59181.0,59180.0,0.0028]
[1725364997230,0.7448,59181.0,59180.0,0.0028]
[1725364997428,0.66031,59181.0,59180.0,0.0028]
[1725364997633,0.15339,59181.0,59180.0,0.0028]
[1725365000633,1.26031,59181.0,59180.0,0.0028]
[1725365001035,1.3448,59181.0,59180.0,0.0028]
[1725365002943,1.54989913,59181.0,59180.0,0.0028]
[1725365003231,0.168994,59176.0,59175.0,0.00025356]
[1725365003440,0.659794,59176.0,59175.0,0.00025356]
[1725365003636,1.22736313,59176.0,59175.0,0.00025356]
[1725365004526,1.22736313,59176.0,59175.0,0.00125356]
[1725365004732,1.82736313,59176.0,59175.0,0.00125356]
[1725365005033,1.82736313,59176.0,59175.0,0.00225356]
[1725365005233,1.22736313,59176.0,59175.0,0.00225356]
[1725365005428,1.166754,59176.0,59175.0,0.00225356]
[1725365006036,1.766754,59176.0,59175.0,0.00225356]
[1725365009636,1.166754,59176.0,59175.0,0.00225356]
[1725365013336,1.481251,59176.0,59175.0,0.00225356]
[1725365013535,2.081251,59176.0,59175.0,0.00225356]
[1725365014238,2.131251,59176.0,59175.0,0.00225356]
[1725365014637,2.081251,59176.0,59175.0,0.00225356]
[1725365017339,0.659794,59176.0,59175.0,0.00225356]
[1725365018034,1.166754,59176.0,59175.0,0.00225356]
[1725365019447,0.659794,59176.0,59175.0,0.00225356]
[1725365019852,1.481251,59176.0,59175.0,0.00225356]
[1725365020048,2.191251,59176.0,59175.0,5.6e-07]
[1725365020552,2.25187444,59176.0,59175.0,5.6e-07]
[1725365021149,2.14187444,59176.0,59175.0,5.6e-07]
[1725365021449,2.26187444,59176.0,59175.0,5.6e-07]
[1725365023243,2.33123932,59176.0,59175.0,5.6e-07]
[1725365023846,2.201251,59176.0,59175.0,5.6e-07]
[1725365025141,1.396754,59176.0,59175.0,5.6e-07]
[1725365025447,0.889794,59176.0,59175.0,5.6e-07]
[1725365026748,0.889794,59176.0,59175.0,0.73000056]
[1725365028450,1.250594,59176.0,59175.0,0.73000056]
[1725365030560,1.335091,59176.0,59175.0,0.73000056]
[1725365030751,2.512051,59176.0,59175.0,0.73000056]
[1725365031058,1.842051,59176.0,59175.0,0.73000056]
[1725365031251,1.335091,59176.0,59175.0,0.73000056]
[1725365035656,1.39571027,59176.0,59175.0,0.73000056]
[1725365037964,2.60267027,59176.0,59175.0,0.73000056]
[1725365038158,2.67203061,59176.0,59175.0,0.73000056]
[1725365038560,2.44203061,59176.0,59175.0,0.73000056]
[1725365038760,2.57203061,59176.0,59175.0,0.73000056]
[1725365038959,2.62203061,59176.0,59175.0,0.73000056]
[1725365039255,1.97203061,59176.0,59175.0,0.73000056]
[1725365039461,2.62203061,59176.0,59175.0,0.73000056]
[1725365040256,2.66203061,59176.0,59175.0,0.73000056]
[1725365041159,2.57203061,59176.0,59175.0,0.73000056]
[1725365041557,2.69203061,59176.0,59175.0,0.73000056]
[1725365042663,2.562051,59176.0,59175.0,0.73000056]
[1725365042967,2.442051,59176.0,59175.0,0.73000056]
[1725365043567,2.492051,59176.0,59175.0,0.73000056]
[1725365043969,1.842051,59176.0,59175.0,0.73000056]
[1725365044169,1.250594,59176.0,59175.0,0.73000056]
[1725365045166,1.31121285,59176.0,59175.0,0.73000056]
[1725365045354,1.166097,59176.0,59175.0,0.73000056]
[1725365045555,0.936097,59176.0,59175.0,0.73000056]
[1725365046061,0.936097,59176.0,59175.0,0.73103356]
[1725365046368,1.166097,59176.0,59175.0,0.73103356]
[1725365047259,1.250594,59176.0,59175.0,0.73103356]
[1725365047465,1.166097,59176.0,59175.0,0.73103356]
[1725365049058,1.250594,59176.0,59175.0,0.73103356]
[1725365050268,1.335091,59176.0,59175.0,0.73103356]
[1725365050568,1.842051,59176.0,59175.0,0.73103356]
[1725365050766,2.442051,59176.0,59175.0,0.73103356]
[1725365050969,2.492051,59176.0,59175.0,0.73103356]
[1725365051364,2.492051,59176.0,59155.0,0.314527]
[1725365051365,0.084505,59171.0,59158.0,0.0046]
[1725365051563,0.084505,59171.0,59156.0,0.0484]
[1725365051564,0.675717,59162.0,59156.0,0.0484]
[1725365051764,0.53025,59157.0,59156.0,0.0484]
[1725365051968,0.53025,59157.0,59152.0,0.0946]
[1725365051969,0.08453,59153.0,59152.0,0.0946]
[1725365052158,0.084536,59149.0,59148.0,0.0484]
[1725365052362,0.414936,59149.0,59148.0,0.0484]
[1725365052562,0.499072,59149.0,59148.0,0.0484]
[1725365052758,0.084543,59144.0,59143.0,0.04945356]
[1725365052958,0.675743,59144.0,59143.0,0.04945356]
[1725365053372,0.666743,59144.0,59143.0,0.04945356]
[1725365054463,0.665743,59144.0,59143.0,0.04945356]
[1725365055068,0.674743,59144.0,59143.0,0.05045356]
[1725365055566,0.688743,59144.0,59143.0,0.05145356]
[1725365055961,0.688743,59144.0,59143.0,0.00225356]
[1725365056174,0.818743,59144.0,59143.0,0.00225356]
[1725365056373,0.903286,59144.0,59143.0,0.00225356]
[1725365056873,1.925983,59144.0,59133.0,0.0923]
[1725365057071,1.925983,59144.0,59128.0,0.00861331]
[1725365057072,0.084565,59129.0,59128.0,0.00861331]
[1725365057273,0.675365,59129.0,59128.0,0.00861331]
[1725365057569,0.084569,59126.0,59125.0,0.046]
[1725365057773,0.314569,59126.0,59125.0,0.046]
[1725365057977,0.314969,59126.0,59125.0,0.046]
[1725365058476,0.313969,59126.0,59125.0,0.046]
[1725365058976,0.313969,59126.0,59125.0,0.05]
[1725365059174,0.508538,59126.0,59120.0,0.00025356]
[1725365059477,0.760352,59121.0,59120.0,0.00025356]
[1725365059684,0.869352,59121.0,59120.0,0.00025356]
[1725365061372,0.783776,59121.0,59120.0,0.00025356]
[1725365061585,0.784776,59121.0,59120.0,0.00025356]
[1725365062075,0.787776,59121.0,59120.0,0.00025356]
[1725365062779,0.447776,59121.0,59120.0,0.00025356]
[1725365063378,0.3652,59121.0,59120.0,0.00025356]
[1725365063577,0.0044,59121.0,59120.0,0.08483056]
[1725365064170,0.3608,59127.0,59126.0,0.084569]
[1725365064376,0.3608,59127.0,59126.0,0.314969]
[1725365065577,0.3778,59127.0,59126.0,0.316969]
[1725365065876,0.3778,59127.0,59126.0,1.424369]
[1725365066083,0.00025356,59131.0,59130.0,0.084563]
[1725365066269,0.00025356,59131.0,59130.0,0.314963]
[1725365066474,0.00025356,59131.0,59130.0,0.822323]
[1725365067075,0.00025356,59131.0,59130.0,0.314963]
[1725365067985,0.01025356,59131.0,59130.0,0.315963]
[1725365068379,0.01925356,59131.0,59130.0,0.316963]
[1725365068878,0.01825356,59131.0,59130.0,0.823323]
[1725365069072,0.01725356,59131.0,59130.0,0.316963]
[1725365070385,0.01725356,59131.0,59130.0,0.32507158]
[1725365070575,0.01725356,59131.0,59130.0,1.43143158]
[1725365070781,0.02125356,59131.0,59130.0,1.43243158]
[1725365071083,0.01225356,59131.0,59130.0,1.43143158]
[1725365071283,0.02525356,59131.0,59130.0,1.43243158]
[1725365071481,0.02225356,59131.0,59130.0,1.60155758]
[1725365071887,0.3608,59140.0,59139.0,0.08455]
[1725365072086,0.3608,59140.0,59139.0,0.31495]
[1725365072284,0.084536,59150.0,59147.0,0.084539]
[1725365072585,0.084536,59149.0,59147.0,0.084939]
[1725365073284,0.445337,59148.0,59147.0,0.084939]
[1725365074779,0.445337,59148.0,59147.0,0.086939]
[1725365076182,0.555337,59148.0,59147.0,0.086939]
[1725365076386,0.194537,59148.0,59147.0,0.086939]
[1725365078387,0.084537,59148.0,59147.0,0.086939]
[1725365081086,0.3608,59149.0,59148.0,0.084537]
[1725365081279,0.00025356,59153.0,59152.0,0.084532]
[1725365082485,0.00025356,59153.0,59152.0,0.085532]
[1725365082680,0.00025356,59153.0,59152.0,0.677224]
[1725365083683,0.00025356,59153.0,59152.0,0.68529726]
[1725365084181,0.00025356,59153.0,59152.0,0.17813726]
[1725365084586,0.00025356,59153.0,59152.0,0.17913726]
[1725365089087,0.088416,59163.0,59162.0,0.084517]
[1725365089287,0.088416,59163.0,59162.0,0.0004]
[1725365089288,0.194516,59163.0,59162.0,0.0004]
[1725365089492,0.169052,59156.0,59155.0,0.0039]
[1725365089701,0.16906,59153.0,59152.0,0.002]
[1725365089895,0.08455,59139.0,59138.0,0.0039]
[1725365090083,0.08455,59139.0,59123.0,0.3608]
[1725365090084,0.3604,59139.0,59124.0,0.0039]
[1725365090287,0.084562,59131.0,59127.0,0.084567]
[1725365090694,0.3608,59135.0,59129.0,0.23]
[1725365090898,0.3908,59135.0,59129.0,0.23]
[1725365091495,0.23,59134.0,59129.0,0.23]
[1725365091703,0.34,59134.0,59129.0,0.23]
[1725365091906,0.08456,59133.0,59129.0,0.23]
[1725365092705,0.23025281,59137.0,59132.0,0.23]
[1725365092897,0.00025281,59137.0,59134.0,0.084557]
[1725365093100,0.00025281,59137.0,59135.0,0.23]
[1725365094101,0.00025281,59137.0,59136.0,0.084555]
[1725365095695,0.00025281,59137.0,59136.0,0.085555]
[1725365099809,0.00025281,59137.0,59136.0,0.084555]
[1725365101508,0.00025281,59137.0,59136.0,0.52991]
[1725365101707,0.00025281,59137.0,59136.0,0.58042742]
[1725365102009,0.00025281,59137.0,59136.0,0.58142742]
[1725365102810,0.00025281,59137.0,59136.0,0.53091]
[1725365103020,0.00025281,59137.0,59136.0,0.57771]
[1725365103204,0.00025281,59137.0,59136.0,0.62822742]
[1725365103406,0.00025281,59137.0,59136.0,0.57771]
[1725365104598,0.00025281,59137.0,59136.0,0.21691]
[1725365106201,0.00025281,59137.0,59136.0,0.57771]
[1725365106605,0.00025281,59137.0,59136.0,0.62822742]
[1725365106802,0.00025281,59137.0,59136.0,0.6281222]
[1725365107310,0.00025281,59137.0,59136.0,0.62812504]
[1725365109104,0.00025281,59137.0,59136.0,0.57771]
[1725365109802,0.00025281,59137.0,59136.0,0.62812504]
[1725365110919,0.00025281,59137.0,59136.0,0.085555]
[1725365112608,0.11025281,59137.0,59136.0,0.085555]
[1725365112809,0.19480581,59137.0,59136.0,0.085555]
[1725365113721,0.42480581,59137.0,59136.0,0.001]
[1725365113916,0.084567,59127.0,59126.0,0.00025356]
[1725365114218,0.314967,59127.0,59126.0,0.00025356]
[1725365115019,0.444967,59127.0,59126.0,0.00025356]
[1725365115316,0.214967,59127.0,59126.0,0.00025356]
[1725365115516,0.214967,59127.0,59126.0,0.23025356]
[1725365115715,0.214967,59127.0,59126.0,0.23325356]
[1725365116116,0.214967,59127.0,59126.0,0.00325356]
[1725365116318,0.214967,59127.0,59126.0,0.00725356]
[1725365121326,0.1304,59127.0,59126.0,0.32182256]
[1725365121532,0.0004,59127.0,59126.0,0.32182256]
[1725365123123,0.0004,59127.0,59126.0,1.79002256]
[1725365123318,0.0039,59136.0,59135.0,0.084556]
[1725365123523,0.0004,59139.0,59136.0,0.084555]
[1725365123730,0.0004,59139.0,59136.0,0.084955]
[1725365123731,0.2304,59139.0,59136.0,0.084955]
[1725365123927,0.2304,59139.0,59136.0,0.084555]
[1725365124132,0.12025281,59137.0,59136.0,0.084555]
[1725365125622,0.12025281,59137.0,59136.0,0.314555]
[1725365125824,0.00025281,59137.0,59136.0,0.314555]
[1725365126734,0.00025281,59137.0,59136.0,0.315555]
[1725365127930,0.00025281,59137.0,59136.0,0.32378386]
[1725365128328,0.00025281,59137.0,59136.0,0.32278386]
[1725365131438,0.00025281,59137.0,59136.0,0.40733886]
[1725365131627,0.00025281,59137.0,59136.0,0.45643886]
[1725365132527,0.00025281,59137.0,59136.0,0.45743886]
[1725365132829,0.0039,59145.0,59144.0,0.169086]
[1725365133025,0.3608,59155.0,59144.0,0.3229531]
[1725365133026,0.0039,59154.0,59144.0,0.3229531]
[1725365133232,0.3608,59155.0,59154.0,0.084529]
[1725365133432,0.3608,59155.0,59154.0,0.084929]
[1725365133629,0.3608,59155.0,59154.0,0.084529]
[1725365134339,0.446321,59160.0,59159.0,0.084522]
[1725365134340,0.001,59160.0,59159.0,0.084522]
[1725365134639,0.3608,59163.0,59161.0,0.084518]
[1725365134829,0.3608,59163.0,59162.0,0.0004]
[1725365135044,0.3608,59163.0,59162.0,0.084917]
[1725365136437,0.3608,59163.0,59162.0,0.085917]
[1725365137337,0.3608,59163.0,59162.0,0.315917]
[1725365137738,0.3608,59163.0,59162.0,0.316917]
[1725365139041,0.3608,59165.0,59162.0,0.2324]
[1725365139347,0.3608,59165.0,59164.0,0.314515]
[1725365139563,0.3608,59165.0,59164.0,0.314915]
[1725365140853,0.3608,59165.0,59164.0,0.315915]
[1725365141659,0.3608,59165.0,59164.0,0.365015]
[1725365142356,0.3608,59165.0,59164.0,0.316915]
[1725365142759,0.3608,59165.0,59164.0,0.32526181]
[1725365143457,0.3608,59165.0,59164.0,0.32426181]
[1725365143663,0.3608,59165.0,59164.0,0.32526181]
[1725365144656,0.3608,59165.0,59164.0,0.316915]
[1725365149060,0.086109,59169.0,59168.0,0.084509]
[1725365149256,0.446909,59169.0,59168.0,0.314909]
[1725365150367,0.446909,59169.0,59168.0,0.315909]
[1725365150751,0.3624,59169.0,59168.0,0.315909]
[1725365150962,0.3624,59169.0,59168.0,0.316909]
[1725365155667,0.3624,59169.0,59168.0,0.3252025]
[1725365162481,0.0016,59169.0,59168.0,0.3252025]
[1725365162671,0.3624,59169.0,59168.0,0.3252025]
[1725365163067,0.42301752,59169.0,59168.0,0.3252025]
[1725365163367,0.06221752,59169.0,59168.0,0.3252025]
[1725365163677,0.0016,59169.0,59168.0,0.3252025]
[1725365171181,0.0016,59169.0,59168.0,0.4097115]
[1725365182389,0.0016,59169.0,59168.0,0.3252025]
[1725365182699,0.0016,59169.0,59168.0,0.0952025]
[1725365183000,0.0016,59169.0,59168.0,0.3252025]
[1725365193305,0.446907,59169.0,59168.0,0.0106935]
[1725365193695,0.531414,59169.0,59168.0,0.0024]
[1725365194012,0.621414,59169.0,59168.0,0.0024]
[1725365194495,0.531414,59169.0,59168.0,0.0024]
[1725365194901,0.531414,59169.0,59168.0,0.0924]
[1725365199209,0.446907,59169.0,59168.0,0.176909]
[1725365200195,0.0016,59169.0,59168.0,0.176909]
[1725365202096,0.0016,59169.0,59168.0,0.086909]
[1725365202293,0.0016,59169.0,59168.0,0.176909]
[1725365210415,0.086107,59169.0,59168.0,0.176909]
[1725365211220,1.193147,59169.0,59168.0,0.0024]
[1725365211416,0.593147,59169.0,59168.0,0.0024]
[1725365213821,0.086107,59169.0,59168.0,0.0024]
[1725365214119,0.086107,59169.0,59168.0,0.0924]
[1725365214318,0.086107,59169.0,59168.0,0.176909]
[1725365218514,0.0016,59169.0,59168.0,0.176909]
[1725365223323,0.06221456,59169.0,59168.0,0.176909]
[1725365223518,0.06221456,59169.0,59168.0,0.0024]
[1725365223519,0.14672156,59169.0,59168.0,0.0024]
[1725365223920,0.206107,59169.0,59168.0,0.0024]
[1725365225527,0.290614,59169.0,59168.0,0.0024]
[1725365225827,0.35122856,59169.0,59168.0,0.0024]
[1725365226628,0.26672156,59169.0,59168.0,0.0024]
[1725365227734,0.26672156,59169.0,59168.0,0.0924]
[1725365228920,0.26672156,59169.0,59168.0,0.176909]
[1725365229122,0.26672156,59169.0,59168.0,0.18522993]
[1725365229930,0.26672156,59169.0,59168.0,0.09522993]
[1725365230325,0.206107,59169.0,59168.0,0.09522993]
[1725365232632,0.566907,59169.0,59168.0,0.09522993]
[1725365236232,0.566907,59169.0,59168.0,0.09422993]
[1725365236434,0.566907,59169.0,59168.0,0.09522993]